fUST/lending_fUST_20250720
["ID","MTS","AMOUNT","RATE_DAILY","PERIOD"]
[373362317,1752969042159,-601.07,0.00018606,2]
[373362319,1752969042169,-460.0,0.00018606,2]
[373362321,1752969042178,-460.0,0.00018606,2]
[373362323,1752969042188,-460.0,0.00018606,2]
[373362325,1752969042197,-460.0,0.00018606,2]
[373362327,1752969042208,-896.0,0.00018606,2]
[373362329,1752969042217,-460.0,0.00018606,2]
[373362330,1752969042226,-460.0,0.00018606,2]
[373362332,1752969042235,-460.0,0.00018606,2]
[373362334,1752969042244,-460.0,0.00018606,2]
[373362336,1752969042254,-460.0,0.00018606,2]
[373362338,1752969042264,-460.0,0.00018606,2]
[373362340,1752969042273,-460.0,0.00018606,2]
[373362342,1752969042282,-460.0,0.00018606,2]
[373362344,1752969042292,-460.0,0.00018606,2]
[373362346,1752969042300,-460.0,0.00018607,2]
[373362348,1752969042310,-460.0,0.00018607,2]
[373362349,1752969042319,-460.0,0.00018607,2]
[373362351,1752969042328,-460.0,0.00018607,2]
[373362353,1752969042339,-460.0,0.00018607,2]
[373362355,1752969042348,-460.0,0.00018607,2]
[373362357,1752969042358,-460.0,0.00018607,2]
[373362359,1752969042367,-460.0,0.00018607,2]
[373362361,1752969042378,-460.0,0.00018607,2]
[373362363,1752969042387,-443.14063796,0.00018607,2]
[373362365,1752969042396,-460.0,0.00018607,2]
[373362367,1752969042406,-460.0,0.00018607,2]
[373362369,1752969042415,-460.0,0.00018607,2]
[373362371,1752969042424,-460.0,0.00018607,2]
[373362373,1752969042433,-460.0,0.00018608,2]
[373362375,1752969042443,-1687.35,0.00018608,2]
[373362377,1752969042452,-517.28,0.00018608,2]
[373362379,1752969042461,-589.74,0.00018609,2]
[373362380,1752969042470,-460.0,0.0001861,2]
[373362382,1752969042479,-499.48,0.0001861,2]
[373362384,1752969042488,-477.87561922,0.00018762,2]
[373362386,1752969042497,-460.0,0.00018878,2]
[373362388,1752969042507,-460.0,0.00018878,2]
[373362390,1752969042516,-627.62,0.00018878,2]
[373362392,1752969042525,-460.0,0.00018878,2]
[373362394,1752969042535,-460.0,0.00018879,2]
[373362396,1752969042544,-460.0,0.00018879,2]
[373362398,1752969042552,-475.59,0.00018879,2]
[373362400,1752969042561,-460.0,0.00018879,2]
[373362402,1752969042571,-460.0,0.00018879,2]
[373362404,1752969042580,-460.0,0.00018879,2]
[373362406,1752969042588,-460.0,0.00018879,2]
[373362408,1752969042598,-460.0,0.00018879,2]
[373362409,1752969042607,-1656.61,0.00018879,2]
[373362411,1752969042617,-460.0,0.00018879,2]
[373362413,1752969042627,-460.0,0.0001888,2]
[373362415,1752969042637,-460.0,0.0001888,2]
[373362417,1752969042646,-460.0,0.0001888,2]
[373362419,1752969042655,-460.0,0.0001888,2]
[373362421,1752969042663,-173.97845056,0.0001888,2]
[373362423,1752969042672,-460.0,0.0001888,2]
[373362425,1752969042682,-460.0,0.0001888,2]
[373362427,1752969042691,-460.0,0.0001888,2]
[373362429,1752969042700,-460.0,0.0001888,2]
[373362430,1752969042709,-460.0,0.0001888,2]
[373362432,1752969042719,-460.0,0.0001888,2]
[373362434,1752969042728,-460.0,0.0001888,2]
[373362436,1752969042739,-460.0,0.0001888,2]
[373362438,1752969042748,-460.0,0.0001888,2]
[373362440,1752969042757,-460.0,0.0001888,2]
[373362442,1752969042767,-460.38,0.0001888,2]
[373362444,1752969042776,-460.0,0.0001888,2]
[373362446,1752969042785,-460.0,0.0001888,2]
[373362448,1752969042795,-502.25704218,0.0001888,2]
[373362450,1752969042803,-371.66,0.0001888,2]
[373362452,1752969042813,-460.0,0.0001888,2]
[373362453,1752969042823,-601.07,0.0001888,2]
[373362455,1752969042832,-460.0,0.0001888,2]
[373362457,1752969042841,-460.0,0.0001888,2]
[373362459,1752969042853,-460.0,0.0001888,2]
[373362461,1752969042862,-460.0,0.0001888,2]
[373362463,1752969042872,-896.0,0.0001888,2]
[373362465,1752969042881,-460.0,0.0001888,2]
[373362467,1752969042891,-460.0,0.0001888,2]
[373362469,1752969042900,-460.0,0.0001888,2]
[373362471,1752969042909,-460.0,0.0001888,2]
[373362473,1752969042918,-460.0,0.0001888,2]
[373362475,1752969042927,-460.0,0.0001888,2]
[373362477,1752969042937,-460.0,0.0001888,2]
[373362478,1752969042947,-460.0,0.0001888,2]
[373362480,1752969042956,-460.0,0.00018881,2]
[373362482,1752969042965,-460.0,0.00018881,2]
[373362484,1752969042975,-460.0,0.00018881,2]
[373362486,1752969042985,-460.0,0.00018881,2]
[373362488,1752969042994,-460.0,0.00018881,2]
[373362490,1752969043004,-460.0,0.00018881,2]
[373362492,1752969043015,-460.0,0.00018881,2]
[373362494,1752969043024,-460.0,0.00018881,2]
[373362496,1752969043033,-460.0,0.00018881,2]
[373362498,1752969043043,-460.0,0.00018881,2]
[373362499,1752969043052,-460.0,0.00018881,2]
[373362501,1752969043061,-460.0,0.00018881,2]
[373362502,1752969043070,-460.0,0.00018881,2]
[373362503,1752969043080,-564.42922651,0.00018882,2]
[373362504,1752969043089,-1687.35,0.00018882,2]
[373362505,1752969043098,-517.28,0.00018882,2]
[373362506,1752969043107,-589.74,0.00018883,2]
[373362507,1752969043116,-460.0,0.00018884,2]
[373362508,1752969043127,-499.48,0.00018884,2]
[373362509,1752969043135,-3760.72538666,0.000189,2]
[373362510,1752969043144,-1000.0,0.00018933,2]
[373362511,1752969043153,-1000.0,0.00019033,2]
[373362513,1752969043162,-3760.72538658,0.00019141,2]
[373362514,1752969043170,-460.0,0.00019152,2]
[373362515,1752969043179,-460.0,0.00019152,2]
[373362516,1752969043189,-627.62,0.00019152,2]
[373362517,1752969043198,-460.0,0.00019152,2]
[373362518,1752969043206,-460.0,0.00019153,2]
[373362519,1752969043215,-460.0,0.00019153,2]
[373362520,1752969043224,-475.59,0.00019153,2]
[373362521,1752969043233,-460.0,0.00019153,2]
[373362522,1752969043242,-460.0,0.00019153,2]
[373362523,1752969043251,-460.0,0.00019153,2]
[373362524,1752969043260,-460.0,0.00019153,2]
[373362525,1752969043269,-460.0,0.00019153,2]
[373362528,1752969043278,-1656.61,0.00019153,2]
[373362530,1752969043287,-460.0,0.00019153,2]
[373362533,1752969043296,-460.0,0.00019154,2]
[373362534,1752969043305,-460.0,0.00019154,2]
[373362536,1752969043315,-460.0,0.00019154,2]
[373362539,1752969043323,-460.0,0.00019154,2]
[373362542,1752969043332,-460.0,0.00019154,2]
[373362545,1752969043341,-460.0,0.00019154,2]
[373362548,1752969043350,-460.0,0.00019154,2]
[373362551,1752969043360,-460.0,0.00019154,2]
[373362554,1752969043369,-460.0,0.00019154,2]
[373362557,1752969043380,-460.0,0.00019154,2]
[373362560,1752969043389,-460.0,0.00019154,2]
[373362563,1752969043399,-460.0,0.00019154,2]
[373362566,1752969043408,-460.0,0.00019154,2]
[373362570,1752969043418,-460.0,0.00019154,2]
[373362573,1752969043427,-601.07,0.00019154,2]
[373362576,1752969043437,-460.0,0.00019154,2]
[373362579,1752969043446,-573.36452909,0.00019154,2]
[373362582,1752969043455,-460.0,0.00019154,2]
[373362585,1752969043465,-460.0,0.00019154,2]
[373362588,1752969043474,-896.0,0.00019154,2]
[373362591,1752969043483,-460.0,0.00019154,2]
[373362594,1752969043492,-460.0,0.00019154,2]
[373362598,1752969043501,-460.0,0.00019154,2]
[373362601,1752969043511,-460.0,0.00019154,2]
[373362604,1752969043520,-230.0,0.00019154,2]
[373362607,1752969043529,-460.0,0.00019154,2]
[373362609,1752969043538,-460.0,0.00019154,2]
[373362611,1752969043548,-460.0,0.00019154,2]
[373362613,1752969043557,-460.0,0.00019155,2]
[373362615,1752969043566,-460.0,0.00019155,2]
[373362617,1752969043576,-166.16101683,0.00019155,2]
[373362619,1752969043585,-460.0,0.00019155,2]
[373362621,1752969043594,-460.0,0.00019155,2]
[373362623,1752969043603,-460.0,0.00019155,2]
[373362625,1752969043614,-460.0,0.00019155,2]
[373362627,1752969043623,-460.0,0.00019155,2]
[373362629,1752969043632,-460.0,0.00019155,2]
[373362631,1752969043641,-460.0,0.00019155,2]
[373362633,1752969043651,-460.0,0.00019155,2]
[373362635,1752969043661,-460.0,0.00019155,2]
[373362637,1752969043671,-460.0,0.00019155,2]
[373362639,1752969043680,-1687.35,0.00019156,2]
[373362641,1752969043689,-517.28,0.00019156,2]
[373362643,1752969043698,-589.74,0.00019157,2]
[373362645,1752969043707,-460.0,0.00019158,2]
[373362646,1752969043716,-499.48,0.00019158,2]
[373362648,1752969043725,-191.035909,0.00019178,2]
[373362650,1752969043735,-160.0,0.0001919,2]
[373362652,1752969043745,-420.0,0.00019303,2]
[373362654,1752969043754,-330.51937683,0.00019327,2]
[373362656,1752969043763,-12612.80205064,0.00019358,2]
[373362658,1752969043773,-839.454303,0.00019358,2]
[373362660,1752969043782,-214.52603969,0.00019358,2]
[373362662,1752969043792,-160.0,0.00019358,2]
[373362664,1752969043802,-230.94145789,0.00019358,2]
[373362666,1752969043811,-160.0,0.00019358,2]
[373362668,1752969043820,-160.0,0.00019358,2]
[373362670,1752969043829,-525.83049785,0.00019358,2]
[373362672,1752969043839,-476.34170116,0.00019358,2]
[373362674,1752969043848,-160.0,0.00019358,2]
[373362676,1752969043858,-215.67360783,0.00019358,2]
[373362678,1752969043867,-3760.72538658,0.00019383,2]
[373362680,1752969043877,-500.0,0.0001942,2]
[373362682,1752969043887,-460.0,0.00019426,2]
[373362684,1752969043896,-460.0,0.00019426,2]
[373362686,1752969043906,-627.62,0.00019426,2]
[373362688,1752969043917,-460.0,0.00019426,2]
[373362690,1752969043926,-500.0,0.00019426,2]
[373362692,1752969043936,-500.0,0.00019426,2]
[373362694,1752969043948,-500.0,0.00019426,2]
[373362696,1752969043957,-500.0,0.00019426,2]
[373362709,1752969043967,-500.0,0.00019426,2]
[373362711,1752969044082,-500.0,0.00019426,2]
[373362713,1752969044092,-500.0,0.00019426,2]
[373362715,1752969044101,-500.0,0.00019426,2]
[373362717,1752969044110,-174.84764652,0.00019426,2]
[373362719,1752969044120,-460.0,0.00019427,2]
[373362721,1752969044130,-210.92,0.00019427,2]
[373362723,1752969044140,-475.59,0.00019427,2]
[373362725,1752969044150,-297.53,0.00019427,2]
[373362727,1752969044160,-460.0,0.00019427,2]
[373362729,1752969044169,-460.0,0.00019427,2]
[373362731,1752969044179,-197.26587956,0.00019427,2]
[373362733,1752969044188,-460.0,0.00019427,2]
[373362735,1752969044198,-1656.61,0.00019427,2]
[373362737,1752969044207,-460.0,0.00019427,2]
[373362739,1752969044216,-460.0,0.00019428,2]
[373362741,1752969044225,-252.36,0.00019428,2]
[373362743,1752969044235,-460.0,0.00019428,2]
[373362745,1752969044244,-460.0,0.00019428,2]
[373362747,1752969044253,-191.65,0.00019428,2]
[373362749,1752969044262,-460.0,0.00019428,2]
[373362751,1752969044271,-460.0,0.00019428,2]
[373362753,1752969044280,-191.65,0.00019428,2]
[373362755,1752969044290,-498.37,0.00019428,2]
[373362757,1752969044299,-460.0,0.00019428,2]
[373362759,1752969044308,-460.0,0.00019428,2]
[373362761,1752969044317,-460.0,0.00019428,2]
[373362763,1752969044327,-460.0,0.00019428,2]
[373362765,1752969044336,-601.07,0.00019428,2]
[373362767,1752969044346,-285.41661818,0.00019428,2]
[373362769,1752969044355,-896.0,0.00019428,2]
[373362771,1752969044364,-460.0,0.00019428,2]
[373362773,1752969044373,-460.0,0.00019428,2]
[373362775,1752969044383,-460.0,0.00019428,2]
[373362777,1752969044392,-460.0,0.00019428,2]
[373362779,1752969044402,-460.0,0.00019428,2]
[373362781,1752969044411,-460.0,0.00019428,2]
[373362783,1752969044420,-460.0,0.00019428,2]
[373362785,1752969044430,-460.0,0.00019429,2]
[373362787,1752969044438,-460.0,0.00019429,2]
[373362789,1752969044448,-460.0,0.00019429,2]
[373362791,1752969044457,-460.0,0.00019429,2]
[373362793,1752969044467,-470.92793417,0.00019429,2]
[373362795,1752969044476,-460.0,0.00019429,2]
[373362797,1752969044486,-460.0,0.00019429,2]
[373362799,1752969044496,-460.0,0.00019429,2]
[373362802,1752969044510,-460.0,0.00019429,2]
[373362804,1752969044519,-460.0,0.00019429,2]
[373362806,1752969044529,-460.0,0.00019429,2]
[373362808,1752969044538,-1687.35,0.0001943,2]
[373362810,1752969044547,-517.28,0.0001943,2]
[373362812,1752969044557,-589.74,0.00019431,2]
[373362814,1752969044566,-460.0,0.00019432,2]
[373362816,1752969044575,-499.48,0.00019432,2]
[373362818,1752969044585,-1000.0,0.00019581,2]
[373362820,1752969044594,-3760.72538658,0.00019624,2]
[373362822,1752969044603,-460.04,0.000197,2]
[373362824,1752969044613,-230.08,0.000197,2]
[373362826,1752969044622,-627.62,0.000197,2]
[373362828,1752969044632,-460.0,0.000197,2]
[373362830,1752969044642,-460.0,0.00019701,2]
[373362832,1752969044651,-475.59,0.00019701,2]
[373362834,1752969044661,-460.0,0.00019701,2]
[373362836,1752969044670,-460.0,0.00019701,2]
[373362838,1752969044681,-460.0,0.00019701,2]
[373362840,1752969044691,-1656.61,0.00019701,2]
[373362842,1752969044700,-460.0,0.00019701,2]
[373362844,1752969044711,-460.0,0.00019702,2]
[373362846,1752969044721,-460.0,0.00019702,2]
[373362848,1752969044731,-437.59521766,0.00019702,2]
[373362850,1752969044742,-460.0,0.00019702,2]
[373362852,1752969044752,-460.0,0.00019702,2]
[373362854,1752969044762,-460.0,0.00019702,2]
[373362856,1752969044771,-460.0,0.00019702,2]
[373362858,1752969044782,-460.0,0.00019702,2]
[373362860,1752969044792,-512.34645923,0.00019702,2]
[373362862,1752969044801,-601.07,0.00019702,2]
[373362864,1752969044810,-896.0,0.00019702,2]
[373362866,1752969044820,-460.0,0.00019702,2]
[373362868,1752969044829,-460.0,0.00019702,2]
[373362870,1752969044838,-460.0,0.00019702,2]
[373362872,1752969044847,-460.0,0.00019702,2]
[373362874,1752969044857,-460.0,0.00019702,2]
[373362876,1752969044867,-460.0,0.00019702,2]
[373362878,1752969044876,-460.0,0.00019702,2]
[373362880,1752969044886,-460.0,0.00019703,2]
[373362882,1752969044895,-460.0,0.00019703,2]
[373362884,1752969044905,-460.0,0.00019703,2]
[373362886,1752969044914,-460.0,0.00019703,2]
[373362888,1752969044923,-460.0,0.00019703,2]
[373362890,1752969044933,-460.0,0.00019703,2]
[373362892,1752969044947,-460.0,0.00019703,2]
[373362894,1752969044956,-1687.35,0.00019704,2]
[373362896,1752969044966,-517.28,0.00019704,2]
[373362898,1752969044976,-589.74,0.00019705,2]
[373362900,1752969044990,-460.0,0.00019706,2]
[373362902,1752969045000,-499.48,0.00019706,2]
[373362904,1752969045009,-260.0,0.00019738,2]
[373362906,1752969045020,-207.4,0.00019769,2]
[373362908,1752969045030,-151.0,0.00019769,2]
[373362910,1752969045039,-151.0,0.00019769,2]
[373362912,1752969045048,-151.0,0.00019769,2]
[373362914,1752969045058,-151.0,0.00019769,2]
[373362916,1752969045069,-151.0,0.00019769,2]
[373362918,1752969045078,-151.0,0.00019769,2]
[373362920,1752969045087,-151.0,0.00019769,2]
[373362922,1752969045097,-151.0,0.00019769,2]
[373362924,1752969045106,-151.0,0.00019769,2]
[373362926,1752969045115,-151.0,0.00019769,2]
[373362928,1752969045126,-151.0,0.00019769,2]
[373362930,1752969045135,-151.0,0.00019769,2]
[373362932,1752969045144,-151.0,0.00019769,2]
[373362934,1752969045154,-151.0,0.00019769,2]
[373362936,1752969045163,-151.0,0.00019769,2]
[373362938,1752969045172,-151.0,0.00019769,2]
[373362940,1752969045181,-477.87561922,0.00019841,2]
[373362942,1752969045190,-3760.72538658,0.00019866,2]
[373362944,1752969045199,-627.62,0.00019974,2]
[373362946,1752969045208,-460.0,0.00019974,2]
[373362948,1752969045217,-460.0,0.00019975,2]
[373362950,1752969045226,-475.59,0.00019975,2]
[373362952,1752969045236,-460.0,0.00019975,2]
[373362954,1752969045245,-460.0,0.00019975,2]
[373362956,1752969045254,-460.0,0.00019975,2]
[373362958,1752969045263,-1656.61,0.00019975,2]
[373362960,1752969045272,-460.0,0.00019975,2]
[373362962,1752969045282,-460.0,0.00019976,2]
[373362964,1752969045291,-460.0,0.00019976,2]
[373362966,1752969045299,-460.0,0.00019976,2]
[373362968,1752969045308,-460.0,0.00019976,2]
[373362970,1752969045317,-460.0,0.00019976,2]
[373362972,1752969045326,-460.0,0.00019976,2]
[373362974,1752969045336,-460.0,0.00019976,2]
[373362976,1752969045345,-601.07,0.00019976,2]
[373362978,1752969045354,-896.0,0.00019976,2]
[373362980,1752969045363,-460.0,0.00019976,2]
[373362981,1752969045371,-460.0,0.00019976,2]
[373362983,1752969045381,-460.0,0.00019976,2]
[373362985,1752969045391,-460.0,0.00019976,2]
[373362987,1752969045400,-460.0,0.00019976,2]
[373362989,1752969045410,-460.0,0.00019976,2]
[373362991,1752969045419,-460.0,0.00019977,2]
[373362994,1752969045428,-550.6,0.00019977,2]
[373362996,1752969045438,-460.0,0.00019977,2]
[373362998,1752969045447,-460.0,0.00019977,2]
[373363000,1752969045456,-460.0,0.00019977,2]
[373363002,1752969045465,-1687.35,0.00019978,2]
[373363003,1752969045474,-517.28,0.00019978,2]
[373363005,1752969045483,-589.74,0.00019979,2]
[373363007,1752969045493,-460.0,0.0001998,2]
[373363009,1752969045502,-499.48,0.0001998,2]
[373363011,1752969045511,-152.474155,0.0001999,2]
[373363013,1752969045520,-3760.72538658,0.00020107,2]
[373363015,1752969045530,-500.0,0.0002015,2]
[373363017,1752969045539,-186.001682,0.00020187,2]
[373363019,1752969045548,-627.62,0.00020248,2]
[373363021,1752969045557,-318.49204299,0.00020248,2]
[373363023,1752969045566,-460.0,0.00020249,2]
[373363025,1752969045576,-475.59,0.00020249,2]
[373363027,1752969045585,-460.0,0.00020249,2]
[373363028,1752969045596,-460.0,0.00020249,2]
[373363029,1752969045613,-460.0,0.00020249,2]
[373363030,1752969045623,-1656.61,0.00020249,2]
[373363031,1752969045634,-460.0,0.00020249,2]
[373363032,1752969045643,-583.84,0.0002025,2]
[373363033,1752969045652,-460.0,0.0002025,2]
[373363034,1752969045660,-460.0,0.0002025,2]
[373363035,1752969045670,-460.0,0.0002025,2]
[373363036,1752969045678,-460.0,0.0002025,2]
[373363037,1752969045687,-460.0,0.0002025,2]
[373363038,1752969045696,-460.0,0.0002025,2]
[373363039,1752969045705,-601.07,0.0002025,2]
[373363040,1752969045714,-896.0,0.0002025,2]
[373363041,1752969045722,-460.0,0.0002025,2]
[373363042,1752969045731,-265.56,0.0002025,2]
[373363043,1752969045741,-460.0,0.0002025,2]
[373363044,1752969045750,-460.0,0.0002025,2]
[373363045,1752969045759,-460.0,0.0002025,2]
[373363046,1752969045768,-460.0,0.0002025,2]
[373363047,1752969045777,-460.0,0.00020251,2]
[373363048,1752969045786,-460.0,0.00020251,2]
[373363049,1752969045795,-179.04,0.00020251,2]
[373363050,1752969045805,-566.84792562,0.00020251,2]
[373363051,1752969045813,-1687.35,0.00020252,2]
[373363052,1752969045822,-517.28,0.00020252,2]
[373363053,1752969045831,-589.74,0.00020253,2]
[373363054,1752969045840,-460.0,0.00020254,2]
[373363055,1752969045851,-499.48,0.00020254,2]
[373363056,1752969045861,-360.0,0.00020286,2]
[373363057,1752969045870,-3760.72538658,0.00020348,3]
[373363058,1752969045880,-500.0,0.00020516,2]
[373363059,1752969045889,-627.62,0.00020522,2]
[373363060,1752969045898,-460.0,0.00020523,2]
[373363061,1752969045907,-475.59,0.00020523,2]
[373363062,1752969045916,-460.0,0.00020523,2]
[373363063,1752969045925,-460.0,0.00020523,2]
[373363064,1752969045934,-460.0,0.00020523,2]
[373363065,1752969045943,-1656.61,0.00020523,2]
[373363066,1752969045952,-460.0,0.00020523,2]
[373363067,1752969045960,-460.0,0.00020524,2]
[373363068,1752969045969,-460.0,0.00020524,2]
[373363069,1752969045978,-460.0,0.00020524,2]
[373363070,1752969045987,-460.0,0.00020524,2]
[373363071,1752969045996,-460.0,0.00020524,2]
[373363072,1752969046005,-460.0,0.00020524,2]
[373363073,1752969046014,-601.07,0.00020524,2]
[373363074,1752969046023,-896.0,0.00020524,2]
[373363075,1752969046031,-460.0,0.00020524,2]
[373363076,1752969046040,-460.0,0.00020524,2]
[373363077,1752969046049,-460.0,0.00020524,2]
[373363078,1752969046058,-194.77146748,0.00020524,2]
[373363079,1752969046067,-460.0,0.00020524,2]
[373363080,1752969046075,-460.0,0.00020525,2]
[373363081,1752969046085,-1687.35,0.00020526,2]
[373363082,1752969046093,-517.28,0.00020526,2]
[373363083,1752969046102,-589.74,0.00020527,2]
[373363084,1752969046111,-460.0,0.00020528,2]
[373363085,1752969046120,-499.48,0.00020528,2]
[373363086,1752969046130,-440.8519397,0.0002053,3]
[373363088,1752969046140,-3760.72538658,0.0002059,3]
[373363090,1752969046149,-500.0,0.00020642,2]
[373363092,1752969046158,-1000.0,0.00020698,2]
[373363094,1752969046167,-1159.886,0.00020772,2]
[373363096,1752969046176,-178.503,0.00020772,2]
[373363098,1752969046185,-627.62,0.00020796,2]
[373363100,1752969046194,-460.0,0.00020797,2]
[373363103,1752969046204,-475.59,0.00020797,2]
[373363105,1752969046213,-460.0,0.00020797,2]
[373363107,1752969046222,-460.0,0.00020797,2]
[373363109,1752969046231,-399.08,0.00020797,2]
[373363111,1752969046240,-1656.61,0.00020797,2]
[373363113,1752969046249,-460.0,0.00020797,2]
[373363116,1752969046258,-286.92,0.00020798,2]
[373363118,1752969046267,-460.0,0.00020798,2]
[373363120,1752969046276,-460.0,0.00020798,2]
[373363122,1752969046285,-460.0,0.00020798,2]
[373363124,1752969046294,-460.0,0.00020798,2]
[373363126,1752969046303,-460.0,0.00020798,2]
[373363128,1752969046312,-601.07,0.00020798,2]
[373363130,1752969046322,-896.0,0.00020798,2]
[373363132,1752969046331,-460.0,0.00020798,2]
[373363134,1752969046340,-390.63,0.00020798,2]
[373363136,1752969046349,-460.0,0.00020798,2]
[373363138,1752969046358,-460.0,0.00020798,2]
[373363140,1752969046367,-460.0,0.00020799,2]
[373363143,1752969046377,-1687.35,0.000208,2]
[373363145,1752969046387,-517.28,0.000208,2]
[373363147,1752969046396,-589.74,0.00020801,2]
[373363150,1752969046405,-460.0,0.00020802,2]
[373363152,1752969046414,-499.48,0.00020802,2]
[373363154,1752969046423,-3760.72538658,0.00020831,4]
[373363156,1752969046432,-260.0,0.00020833,2]
[373363158,1752969046441,-477.87561922,0.00020919,2]
[373363160,1752969046451,-604.31728,0.00021025,2]
[373363162,1752969046460,-587.0,0.00021068,2]
[373363164,1752969046469,-627.62,0.0002107,2]
[373363166,1752969046479,-460.0,0.00021071,2]
[373363168,1752969046488,-475.59,0.00021071,2]
[373363170,1752969046497,-218.88,0.00021071,2]
[373363172,1752969046506,-460.0,0.00021071,2]
[373363174,1752969046515,-1656.61,0.00021071,2]
[373363176,1752969046524,-460.0,0.00021071,2]
[373363178,1752969046533,-460.0,0.00021072,2]
[373363180,1752969046542,-362.44,0.00021072,2]
[373363182,1752969046551,-460.0,0.00021072,2]
[373363184,1752969046560,-460.0,0.00021072,2]
[373363186,1752969046569,-460.0,0.00021072,2]
[373363188,1752969046578,-601.07,0.00021072,2]
[373363190,1752969046587,-896.0,0.00021072,2]
[373363192,1752969046596,-460.0,0.00021072,2]
[373363194,1752969046605,-460.0,0.00021072,2]
[373363196,1752969046614,-460.0,0.00021072,2]
[373363198,1752969046624,-3760.72538658,0.00021072,4]
[373363200,1752969046633,-460.0,0.00021073,2]
[373363202,1752969046643,-1687.35,0.00021074,2]
[373363204,1752969046652,-517.28,0.00021074,2]
[373363206,1752969046661,-589.74,0.00021075,2]
[373363208,1752969046670,-460.0,0.00021076,2]
[373363210,1752969046679,-499.48,0.00021076,2]
[373363212,1752969046689,-215.0738,0.00021138,2]
[373363214,1752969046698,-810.72284406,0.00021166,2]
[373363216,1752969046707,-510.83520305,0.0002119,2]
[373363218,1752969046717,-1500.0,0.00021246,2]
[373363220,1752969046727,-3760.72538658,0.00021314,5]
[373363222,1752969046736,-152.474155,0.00021318,2]
[373363224,1752969046745,-627.62,0.00021344,2]
[373363226,1752969046754,-460.0,0.00021345,2]
[373363228,1752969046763,-475.59,0.00021345,2]
[373363230,1752969046772,-198.35,0.00021345,2]
[373363232,1752969046781,-1656.61,0.00021345,2]
[373363234,1752969046790,-556.91,0.00021345,2]
[373363236,1752969046799,-460.0,0.00021346,2]
[373363238,1752969046808,-460.0,0.00021346,2]
[373363240,1752969046818,-585.85,0.00021346,2]
[373363242,1752969046828,-460.0,0.00021346,2]
[373363255,1752969046943,-601.07,0.00021346,2]
[373363257,1752969046953,-896.0,0.00021346,2]
[373363259,1752969046962,-460.0,0.00021346,2]
[373363261,1752969046971,-247.45,0.00021346,2]
[373363263,1752969046981,-460.0,0.00021346,2]
[373363265,1752969046990,-460.0,0.00021347,2]
[373363267,1752969046999,-1687.35,0.00021348,2]
[373363269,1752969047008,-517.28,0.00021348,2]
[373363271,1752969047018,-589.74,0.00021349,2]
[373363273,1752969047027,-460.0,0.0002135,2]
[373363275,1752969047036,-499.48,0.0002135,2]
[373363277,1752969047046,-696.898,0.0002143,2]